lending/lending_fUSD_20250121
["ID","MTS","AMOUNT","RATE_DAILY","PERIOD"]
[349889924,1737479458788,-259.35253388,0.00020705,2]
[349889925,1737479458800,-500.0,0.00020705,2]
[349889926,1737479458812,-2577.28,0.00020705,2]
[349889927,1737479458825,-500.0,0.00020705,2]
[349889928,1737479458836,-1088.17,0.00020705,2]
[349889929,1737479458849,-1796.36,0.00020705,2]
[349889930,1737479458861,-640.73,0.00020705,2]
[349889931,1737479458873,-4318.56,0.00020705,2]
[349889932,1737479458886,-735.56,0.00020705,2]
[349889933,1737479458898,-1359.04,0.00020705,2]
[349889934,1737479458910,-710.9,0.00020705,2]
[349889935,1737479458923,-500.0,0.00020705,2]
[349889936,1737479458932,-1294.45,0.00020705,2]
[349889937,1737479458942,-4644.51,0.00020705,2]
[349889938,1737479458951,-851.33,0.00020705,2]
[349889939,1737479458961,-500.0,0.00020705,2]
[349889940,1737479458971,-561.61,0.00020705,2]
[349889941,1737479459201,-1491.18,0.00020705,2]
[349889942,1737479459230,-500.0,0.00020705,2]
[349889943,1737479459240,-1158.68,0.00020705,2]
[349889944,1737479459251,-159.47,0.00020708,2]
[349889945,1737479459260,-150.0,0.00020717,2]
[349889946,1737479459270,-3000.0,0.00020738,2]
[349889947,1737479459279,-3000.0,0.00020741,2]
[349889948,1737479459289,-935.71390749,0.00020749,2]
[349889949,1737479459298,-385.47,0.00020758,2]
[349889950,1737479459308,-2999.99,0.0002076,2]
[349889951,1737479459317,-1000.0,0.00020762,2]
[349889952,1737479459327,-150.0,0.00020766,2]
[349889953,1737479459336,-2999.99,0.00020767,2]
[349889954,1737479459346,-7840.1783477,0.00020785,2]
[349889955,1737479459356,-200.0,0.00020786,2]
[349889956,1737479459367,-650.39271654,0.00020787,2]
[349889957,1737479459376,-7840.1783477,0.00020787,2]
[349889958,1737479459386,-337.79711042,0.00020787,2]
[349889959,1737479459395,-4011.86715798,0.00020789,2]
[349889960,1737479459404,-455.63,0.0002079,2]
[349889961,1737479459413,-8217.02347165,0.00020791,2]
[349889962,1737479459424,-670.21272174,0.00020792,2]
[349889963,1737479459433,-200.0,0.00020792,2]
[349889964,1737479459443,-200.0,0.00020794,2]
[349889965,1737479459452,-200.0,0.00020794,2]
[349889966,1737479459462,-5044.31357189,0.00020797,2]
[349889967,1737479459471,-670.21272174,0.00020798,2]
[349889968,1737479459483,-1000.0,0.000208,2]
[349889969,1737479459493,-337.79711042,0.00020801,2]
[349889970,1737479459503,-10077.98468788,0.00020803,2]
[349889971,1737479459513,-3000.01,0.00020803,2]
[349889972,1737479459522,-1094.61436211,0.00020804,2]
[349889973,1737479459532,-426.13956373,0.00020806,2]
[349889974,1737479459541,-1067.24,0.00020806,2]
[349889975,1737479459551,-24310.47,0.00020807,2]
[349889976,1737479459560,-424.24,0.00020808,2]
[349889977,1737479459570,-650.39271654,0.00020812,2]
[349889978,1737479459580,-200.0,0.00020812,2]
[349889979,1737479459589,-150.0,0.00020815,2]
[349889980,1737479459598,-8217.02347165,0.00020815,2]
[349889981,1737479459607,-337.79711042,0.00020817,2]
[349889982,1737479459616,-1344.52,0.0002082,2]
[349889983,1737479459625,-658.26,0.0002082,2]
[349889984,1737479459634,-381.51400281,0.0002082,2]
[349889985,1737479459643,-525.7,0.00020821,2]
[349889986,1737479459654,-500.0,0.00020821,2]
[349889987,1737479459663,-500.0,0.00020821,2]
[349889988,1737479459672,-547.33809712,0.00020821,2]
[349889989,1737479459681,-500.0,0.00020821,2]
[349889990,1737479459690,-500.0,0.00020821,2]
[349889991,1737479459700,-776.49,0.00020821,2]
[349889992,1737479459709,-500.0,0.00020821,2]
[349889993,1737479459718,-528.45,0.00020821,2]
[349889994,1737479459729,-500.0,0.00020821,2]
[349889995,1737479459739,-572.08,0.00020821,2]
[349889996,1737479459751,-647.34,0.00020821,2]
[349889997,1737479459761,-500.0,0.00020821,2]
[349889998,1737479459771,-506.89,0.00020821,2]
[349889999,1737479459780,-500.0,0.00020821,2]
[349890000,1737479459789,-438.72967266,0.00020821,2]
[349890001,1737479459798,-500.0,0.00020821,2]
[349890002,1737479459808,-500.0,0.00020821,2]
[349890003,1737479459817,-500.0,0.00020821,2]
[349890004,1737479459826,-281.74184451,0.00020821,2]
[349890005,1737479459835,-500.0,0.00020821,2]
[349890006,1737479459844,-500.0,0.00020821,2]
[349890007,1737479459854,-500.0,0.00020821,2]
[349890008,1737479459863,-500.0,0.00020821,2]
[349890009,1737479459872,-500.0,0.00020821,2]
[349890010,1737479459882,-509.32,0.00020821,2]
[349890011,1737479459891,-515.62,0.00020821,2]
[349890012,1737479459901,-500.0,0.00020821,2]
[349890013,1737479459910,-500.0,0.00020821,2]
[349890014,1737479459920,-599.41,0.00020821,2]
[349890015,1737479459933,-308.63395789,0.00020821,2]
[349890016,1737479459942,-500.0,0.00020821,2]
[349890017,1737479459951,-574.42528812,0.00020821,2]
[349890018,1737479459960,-500.0,0.00020821,2]
[349890019,1737479459970,-500.0,0.00020821,2]
[349890020,1737479459980,-500.0,0.00020821,2]
[349890021,1737479459990,-500.0,0.00020821,2]
[349890022,1737479460000,-500.0,0.00020821,2]
[349890023,1737479460010,-500.0,0.00020821,2]
[349890024,1737479460020,-339.56182308,0.00020821,2]
[349890025,1737479460030,-810.5,0.00020821,2]
[349890026,1737479460040,-500.0,0.00020821,2]
[349890027,1737479460051,-4560.48,0.00020821,2]
[349890028,1737479460061,-500.0,0.00020821,2]
[349890029,1737479460071,-2352.03,0.00020821,2]
[349890030,1737479460081,-500.0,0.00020821,2]
[349890031,1737479460091,-500.0,0.00020821,2]
[349890032,1737479460100,-500.0,0.00020821,2]
[349890033,1737479460110,-701.77,0.00020821,2]
[349890034,1737479460119,-500.0,0.00020821,2]
[349890035,1737479460130,-698.650359,0.00020821,2]
[349890036,1737479460139,-500.0,0.00020821,2]
[349890037,1737479460148,-1124.94,0.00020821,2]
[349890038,1737479460158,-500.0,0.00020821,2]
[349890039,1737479460167,-531.34,0.00020821,2]
[349890040,1737479460177,-749.14,0.00020821,2]
[349890041,1737479460186,-500.0,0.00020821,2]
[349890042,1737479460197,-1003.53,0.00020821,2]
[349890043,1737479460206,-563.702205,0.00020821,2]
[349890044,1737479460215,-629.26,0.00020821,2]
[349890045,1737479460226,-590.33,0.00020821,2]
[349890046,1737479460236,-500.0,0.00020821,2]
[349890047,1737479460246,-718.45,0.00020821,2]
[349890048,1737479460255,-1881.9,0.00020821,2]
[349890049,1737479460265,-754.04,0.00020821,2]
[349890050,1737479460275,-777.47,0.00020821,2]
[349890051,1737479460285,-500.0,0.00020821,2]
[349890052,1737479460294,-739.46,0.00020821,2]
[349890053,1737479460304,-925.58,0.00020821,2]
[349890054,1737479460314,-1142.64,0.00020821,2]
[349890055,1737479460323,-2002.12,0.00020821,2]
[349890056,1737479460333,-709.95,0.00020821,2]
[349890057,1737479460342,-941.04,0.00020821,2]
[349890058,1737479460351,-2517.4,0.00020821,2]
[349890059,1737479460361,-1413.99,0.00020821,2]
[349890060,1737479460371,-552.17,0.00020821,2]
[349890061,1737479460381,-737.99,0.00020821,2]
[349890062,1737479460391,-3214.68,0.00020821,2]
[349890063,1737479460400,-1146.7,0.00020821,2]
[349890064,1737479460409,-626.45,0.00020821,2]
[349890065,1737479460419,-1079.87,0.00020821,2]
[349890066,1737479460429,-2035.94,0.00020821,2]
[349890067,1737479460438,-657.06,0.00020821,2]
[349890068,1737479460447,-808.85,0.00020821,2]
[349890069,1737479460457,-916.07,0.00020821,2]
[349890070,1737479460466,-1430.53,0.00020821,2]
[349890071,1737479460478,-721.27,0.00020821,2]
[349890072,1737479460487,-1786.33,0.00020821,2]
[349890073,1737479460496,-631.29,0.00020821,2]
[349890074,1737479460506,-2195.22,0.00020821,2]
[349890075,1737479460516,-1106.1,0.00020821,2]
[349890076,1737479460525,-3164.59,0.00020821,2]
[349890077,1737479460535,-500.0,0.00020821,2]
[349890078,1737479460544,-2877.9,0.00020821,2]
[349890079,1737479460553,-574.34,0.00020821,2]
[349890080,1737479460562,-1257.13,0.00020821,2]
[349890081,1737479460572,-2008.47,0.00020821,2]
[349890082,1737479460581,-1016.06,0.00020821,2]
[349890083,1737479460591,-2998.19,0.00020821,2]
[349890084,1737479460600,-1129.37,0.00020821,2]
[349890085,1737479460609,-1537.18,0.00020821,2]
[349890086,1737479460619,-794.84,0.00020821,2]
[349890087,1737479460628,-1711.15,0.00020821,2]
[349890088,1737479460638,-1550.42,0.00020821,2]
[349890089,1737479460649,-1036.46,0.00020821,2]
[349890090,1737479460660,-573.63,0.00020821,2]
[349890091,1737479460669,-500.0,0.00020821,2]
[349890092,1737479460680,-1712.5,0.00020821,2]
[349890093,1737479460690,-1076.93,0.00020821,2]
[349890094,1737479460699,-1102.43,0.00020821,2]
[349890095,1737479460709,-670.27,0.00020821,2]
[349890096,1737479460719,-5078.69,0.00020821,2]
[349890097,1737479460729,-1584.35,0.00020821,2]
[349890098,1737479460739,-2472.99,0.00020821,2]
[349890099,1737479460748,-1076.06,0.00020821,2]
[349890100,1737479460757,-2100.44,0.00020821,2]
[349890101,1737479460767,-912.99,0.00020821,2]
[349890102,1737479460777,-1537.4,0.00020821,2]
[349890103,1737479460786,-1047.56,0.00020821,2]
[349890104,1737479460796,-794.25,0.00020821,2]
[349890105,1737479460805,-1032.19,0.00020821,2]
[349890106,1737479460814,-2060.25,0.00020821,2]
[349890107,1737479460824,-768.01,0.00020821,2]
[349890108,1737479460833,-500.0,0.00020821,2]
[349890109,1737479460843,-500.0,0.00020821,2]
[349890110,1737479460852,-500.0,0.00020821,2]
[349890111,1737479460861,-772.75,0.00020821,2]
[349890112,1737479460871,-1196.17,0.00020821,2]
[349890113,1737479460880,-1952.2,0.00020821,2]
[349890114,1737479460890,-500.0,0.00020821,2]
[349890115,1737479460899,-939.15,0.00020821,2]
[349890116,1737479460909,-1499.2,0.00020821,2]
[349890117,1737479460919,-639.05,0.00020821,2]
[349890118,1737479460932,-1153.34,0.00020821,2]
[349890119,1737479460942,-500.0,0.00020821,2]
[349890120,1737479460952,-550.31,0.00020821,2]
[349890121,1737479460962,-500.0,0.00020821,2]
[349890122,1737479460973,-2090.6,0.00020821,2]
[349890123,1737479460984,-500.0,0.00020821,2]
[349890124,1737479460994,-500.0,0.00020821,2]
[349890125,1737479461006,-500.0,0.00020821,2]
[349890126,1737479461016,-1157.02,0.00020821,2]
[349890127,1737479461026,-703.86,0.00020821,2]
[349890128,1737479461036,-200.0,0.00020822,2]
[349890129,1737479461045,-339.78331839,0.00020823,2]
[349890130,1737479461055,-577.17002414,0.00020823,2]
[349890131,1737479461064,-200.0,0.00020825,2]
[349890132,1737479461074,-7840.1783477,0.00020826,2]
[349890133,1737479461083,-5044.31357189,0.00020832,2]
[349890134,1737479461092,-339.78331839,0.00020834,2]
[349890135,1737479461101,-200.0,0.00020835,2]
[349890136,1737479461111,-426.13956373,0.00020835,2]
[349890137,1737479461121,-10077.98468788,0.00020836,2]
[349890138,1737479461131,-391.66284736,0.00020836,2]
[349890139,1737479461140,-200.0,0.00020837,2]
[349890140,1737479461150,-1094.61436211,0.00020837,2]
[349890141,1737479461160,-200.0,0.0002084,2]
[349890142,1737479461169,-3324.20437682,0.0002084,2]
[349890143,1737479461179,-200.0,0.00020841,2]
[349890144,1737479461189,-200.0,0.00020842,2]
[349890145,1737479461199,-1094.61436211,0.00020845,2]
[349890146,1737479461209,-4011.86715798,0.00020846,2]
[349890147,1737479461218,-8217.02347165,0.00020846,2]
[349890148,1737479461228,-842.59414774,0.00020847,2]
[349890149,1737479461237,-3324.20437682,0.00020848,2]
[349890150,1737479461247,-426.13956373,0.00020848,2]
[349890151,1737479461256,-5000.0,0.00020849,2]
[349890152,1737479461266,-1094.61436211,0.00020851,2]
[349890153,1737479461276,-337.79711042,0.00020852,2]
[349890154,1737479461285,-426.13956373,0.00020855,2]
[349890155,1737479461295,-150.0,0.00020856,2]
[349890156,1737479461304,-215.36231968,0.00020859,2]
[349890157,1737479461314,-200.0,0.0002086,2]
[349890158,1737479461323,-5044.31357189,0.00020862,2]
[349890159,1737479461333,-150.0,0.00020867,2]
[349890160,1737479461343,-842.59414774,0.00020867,2]
[349890161,1737479461353,-670.21272174,0.00020869,2]
[349890162,1737479461362,-577.17002414,0.00020871,2]
[349890163,1737479461371,-200.0,0.00020872,2]
[349890164,1737479461381,-301.45000873,0.00020873,2]
[349890165,1737479461391,-200.0,0.00020875,2]
[349890166,1737479461401,-200.0,0.00020875,2]
[349890167,1737479461410,-842.59414774,0.00020877,2]
[349890168,1737479461419,-650.39271654,0.00020878,2]
[349890169,1737479461429,-5000.0,0.0002088,2]
[349890170,1737479461439,-5044.31357189,0.00020881,2]
[349890171,1737479461448,-215.36231968,0.00020881,2]
[349890172,1737479461457,-842.59414774,0.00020884,2]
[349890173,1737479461467,-3324.20437682,0.00020886,2]
[349890174,1737479461476,-5044.31357189,0.00020889,2]
[349890175,1737479461486,-7840.1783477,0.00020892,2]
[349890176,1737479461496,-3324.20437682,0.00020893,2]
[349890177,1737479461506,-339.78331839,0.00020894,2]
[349890178,1737479461516,-670.21272174,0.00020897,2]
[349890179,1737479461526,-670.21272174,0.00020897,2]
[349890180,1737479461536,-339.78331839,0.00020897,2]
[349890181,1737479461546,-4011.86715798,0.00020898,2]
[349890182,1737479461555,-150.0,0.00020901,2]
[349890183,1737479461564,-4975.26992758,0.00020901,2]
[349890184,1737479461575,-4011.86715798,0.00020901,2]
[349890185,1737479461584,-337.79711042,0.00020901,2]
[349890186,1737479461595,-200.0,0.00020902,2]
[349890187,1737479461605,-1094.61436211,0.00020903,2]
[349890188,1737479461614,-300.0,0.00020904,2]
[349890189,1737479461624,-391.66284736,0.00020905,2]
[349890190,1737479461634,-150.0,0.00020905,2]
[349890191,1737479461643,-577.17002414,0.00020905,2]
[349890192,1737479461653,-339.78331839,0.00020906,2]
[349890193,1737479461663,-150.0,0.00020907,2]
[349890194,1737479461672,-842.59414774,0.00020907,2]
[349890195,1737479461682,-200.0,0.00020908,2]
[349890196,1737479461691,-391.66284736,0.00020908,2]
[349890197,1737479461701,-577.17002414,0.00020909,2]
[349890198,1737479461710,-577.17002414,0.00020911,2]
[349890199,1737479461720,-10077.98468788,0.00020913,2]
[349890200,1737479461729,-3324.20437682,0.00020914,2]
[349890201,1737479461738,-300.0,0.00020918,2]
[349890202,1737479461748,-1000.0,0.00020919,2]
[349890203,1737479461758,-4011.86715798,0.00020921,2]
[349890204,1737479461767,-200.0,0.00020923,2]
[349890205,1737479461776,-7840.1783477,0.00020927,2]
[349890206,1737479461786,-200.0,0.00020928,2]
[349890207,1737479461796,-391.66284736,0.00020929,2]
[349890208,1737479461805,-215.36231968,0.00020931,2]
[349890209,1737479461814,-25000.0,0.00020931,2]
[349890210,1737479461824,-391.66284736,0.00020931,2]
[349890211,1737479461834,-215.36231968,0.00020931,2]
[349890212,1737479461844,-10077.98468788,0.00020932,2]
[349890213,1737479461854,-150.0,0.00020933,2]
[349890214,1737479461863,-10077.98468788,0.00020935,2]
[349890215,1737479461872,-8217.02347165,0.00020935,2]
[349890216,1737479461882,-200.0,0.00020938,2]
[349890217,1737479461891,-426.13956373,0.00020941,2]
[349890218,1737479461901,-200.0,0.00020943,2]
[349890219,1737479461912,-650.39271654,0.00020944,2]
[349890220,1737479461924,-215.36231968,0.00020945,2]
[349890221,1737479461934,-650.39271654,0.00020946,2]
[349890222,1737479461944,-8217.02347165,0.00020947,2]
[349890223,1737479461955,-150.0,0.00020949,2]
[349890224,1737479461964,-658.26,0.00020957,2]
[349890225,1737479461973,-173.0,0.00020959,13]
[349890226,1737479461986,-5000.0,0.00020962,2]
[349890227,1737479461996,-500.0,0.00020973,2]
[349890228,1737479462007,-500.0,0.00020973,2]
[349890229,1737479462016,-500.0,0.00020973,2]
[349890230,1737479462026,-500.0,0.00020979,2]
[349890231,1737479462036,-330.81060941,0.00020979,2]
[349890232,1737479462046,-500.0,0.00020979,2]
[349890233,1737479462056,-500.0,0.00020979,2]
[349890234,1737479462066,-500.0,0.00020979,2]
[349890235,1737479462075,-505.86,0.00020979,2]
[349890236,1737479462085,-438.28,0.00020979,2]
[349890237,1737479462095,-500.0,0.00020979,2]
[349890238,1737479462105,-500.0,0.00020979,2]
[349890239,1737479462115,-500.0,0.00020979,2]
[349890240,1737479462124,-500.0,0.00020979,2]
[349890241,1737479462134,-500.0,0.00020979,2]
[349890242,1737479462143,-500.0,0.00020979,2]
[349890243,1737479462154,-500.0,0.00020979,2]
[349890244,1737479462164,-500.0,0.00020979,2]
[349890245,1737479462173,-522.33667414,0.00020979,2]
[349890246,1737479462183,-500.0,0.00020979,2]
[349890247,1737479462193,-500.0,0.00020979,2]
[349890248,1737479462203,-500.0,0.00020979,2]
[349890249,1737479462212,-578.2,0.00020979,2]
[349890250,1737479462222,-500.0,0.00020979,2]
[349890251,1737479462236,-553.25,0.00020979,2]
[349890252,1737479462245,-500.0,0.00020979,2]
[349890253,1737479462255,-500.0,0.00020979,2]
[349890254,1737479462264,-500.0,0.00020979,2]
[349890255,1737479462274,-500.0,0.00020979,2]
[349890256,1737479462284,-518.27,0.00020979,2]
[349890257,1737479462294,-500.0,0.00020979,2]
[349890258,1737479462305,-1420.64,0.00020979,2]
[349890259,1737479462315,-500.0,0.00020979,2]
[349890260,1737479462324,-500.0,0.00020979,2]
[349890261,1737479462334,-1040.41,0.00020979,2]
[349890262,1737479462344,-500.0,0.00020979,2]
[349890263,1737479462353,-1034.85,0.00020979,2]
[349890264,1737479462363,-500.0,0.00020979,2]
[349890265,1737479462532,-1232.93,0.00020979,2]
[349890266,1737479462543,-2266.68,0.00020979,2]
[349890267,1737479462553,-732.29,0.00020979,2]
[349890268,1737479462563,-500.0,0.00020979,2]
[349890269,1737479462574,-1145.55,0.00020979,2]
[349890270,1737479462583,-1448.67,0.00020979,2]
[349890271,1737479462593,-874.76,0.00020979,2]
[349890272,1737479462603,-500.0,0.00020979,2]
[349890273,1737479462612,-2577.28,0.00020979,2]
[349890274,1737479462622,-500.0,0.00020979,2]
[349890275,1737479462632,-1088.17,0.00020979,2]
[349890276,1737479462642,-1796.36,0.00020979,2]
[349890277,1737479462653,-640.73,0.00020979,2]
[349890278,1737479462662,-4318.56,0.00020979,2]
[349890279,1737479462672,-735.56,0.00020979,2]
[349890280,1737479462682,-1359.04,0.00020979,2]
[349890281,1737479462692,-710.9,0.00020979,2]
[349890282,1737479462702,-500.0,0.00020979,2]
[349890283,1737479462711,-1294.45,0.00020979,2]
[349890284,1737479462721,-4644.51,0.00020979,2]
[349890285,1737479462731,-851.33,0.00020979,2]
[349890286,1737479462740,-500.0,0.00020979,2]
[349890287,1737479462750,-561.61,0.00020979,2]
[349890288,1737479462759,-1491.18,0.00020979,2]
[349890289,1737479462769,-500.0,0.00020979,2]
[349890290,1737479462779,-1158.68,0.00020979,2]
[349890291,1737479462789,-150.0,0.00020981,2]
[349890292,1737479462798,-150.0,0.00020982,2]
[349890293,1737479462807,-2110.78,0.00020986,2]
[349890294,1737479462817,-479.81668054,0.0002099,2]
[349890295,1737479462827,-424.68362226,0.00020994,2]
[349890296,1737479462836,-5000.0,0.00020998,2]
[349890297,1737479462846,-1067.24,0.00020999,2]
[349890298,1737479462856,-281.9439939,0.00021,7]
[349890299,1737479462865,-2110.0,0.00021,2]
[349890300,1737479462876,-22087.94618106,0.00021,2]
[349890301,1737479462885,-9276.16537131,0.00021,4]
[349890302,1737479462895,-129168.35457221,0.00021,2]
[349890303,1737479462904,-1000.0,0.00021,2]
[349890304,1737479462915,-484991.03636915,0.00021,4]
[349890305,1737479462925,-150.0,0.00021014,2]
[349890306,1737479462935,-805.15798569,0.00021021,2]
[349890307,1737479462945,-1000.0,0.00021021,2]
[349890308,1737479462956,-2000.0,0.00021026,2]
[349890309,1737479462966,-200.0,0.00021026,2]
[349890310,1737479462975,-150.0,0.00021026,2]
[349890311,1737479462987,-2000.0,0.00021026,2]
[349890312,1737479462997,-200.0,0.00021026,2]
[349890313,1737479463009,-150.0,0.00021028,2]
[349890314,1737479463019,-935.71390749,0.00021037,2]
[349890315,1737479463029,-773.11,0.00021041,2]
[349890316,1737479463039,-438.48,0.00021041,2]
[349890317,1737479463049,-438.48,0.00021041,2]
[349890318,1737479463059,-773.11,0.00021041,2]
[349890319,1737479463069,-438.48,0.00021041,2]
[349890320,1737479463079,-773.11,0.00021041,2]
[349890321,1737479463090,-773.11,0.00021041,2]
[349890322,1737479463101,-438.48,0.00021041,2]
[349890323,1737479463110,-438.48,0.00021041,2]
[349890324,1737479463120,-773.11,0.00021041,2]
[349890325,1737479463129,-438.48,0.00021041,2]
[349890326,1737479463139,-773.11,0.00021041,2]
[349890327,1737479463149,-985.98,0.00021041,2]
[349890328,1737479463160,-438.48,0.00021041,2]
[349890329,1737479463170,-438.48,0.00021041,2]
[349890330,1737479463180,-24791.0,0.00021041,2]
[349890331,1737479463189,-150.0,0.00021063,2]
[349890332,1737479463200,-2773.9338953,0.00021069,2]
[349890333,1737479463210,-479.81668054,0.0002107,2]
[349890334,1737479463220,-2371184.58166991,0.0002108,2]
[349890335,1737479463808,-150.0,0.00018302,2]
[349890336,1737479463818,-188.42099327,0.00019178,2]
[349890337,1737479464000,-311.57900673,0.00019178,2]
[349890338,1737479464013,-534.53186042,0.00019335,2]
[349890339,1737479464024,-500.0,0.00019335,2]
[349890340,1737479464034,-1.48995915,0.00019452,2]
[349890341,1737479464046,-307.6829268,0.00019452,2]
[349890342,1737479464063,-190.82711405,0.00019452,2]
[349890343,1737479464073,-150.0,0.00019896,2]
[349890344,1737479464083,-300.0,0.000201,2]
[349890345,1737479464093,-306.90234595,0.00020452,2]
[349890346,1737479464495,-500.0,0.00019178,2]
[349890347,1737479464505,-164.27043,0.00019178,2]
[349890348,1737479464515,-500.0,0.00019335,2]
[349890349,1737479464524,-32.8733397,0.00019452,2]
[349890350,1737479464540,-467.1266603,0.00019452,2]
[349890351,1737479464550,-186.4233447,0.00019609,2]
[349890352,1737479464562,-313.5766553,0.00019609,2]
[349890353,1737479464572,-500.0,0.00019726,2]
[349890354,1737479464581,-500.0,0.00019726,2]
[349890355,1737479464591,-500.0,0.00019883,2]
[349890356,1737479464600,-5701.41611014,0.0001993,2]
[349890357,1737479464609,-500.0,0.0002,2]
[349890358,1737479464619,-500.0,0.0002,2]
[349890359,1737479464628,-500.0,0.00020157,2]
[349890360,1737479464638,-500.0,0.00020273,2]
[349890361,1737479464649,-500.0,0.00020273,2]
[349890362,1737479464659,-132.22352319,0.00020452,2]
[349890363,1737479464668,-322.78371137,0.00020521,2]
[349890364,1737479464681,-116.34215777,0.00020521,2]
[349890365,1737479464690,-500.0,0.00020547,2]
[349890366,1737479464699,-186.88,0.00020547,2]
[349890367,1737479464709,-47.82784222,0.0002059,2]
[349890368,1737479464721,-391.29802692,0.0002059,2]
[349890369,1737479464773,-439.12586914,0.00020659,2]
[349890370,1737479464783,-146.84230006,0.00020665,2]
[349890371,1737479464825,-12500.0,0.0002,2]
[349890372,1737479464834,-3.15769994,0.00020665,2]
[349890373,1737479464844,-439.12586914,0.00020728,2]
[349890374,1737479464854,-439.12586914,0.00020797,2]
[349890375,1737479464864,-500.0,0.00020821,2]
[349890376,1737479464873,-164.27043,0.00020821,2]
[349890377,1737479464883,-439.12586914,0.00020866,2]
[349890378,1737479464892,-150.0,0.00020926,2]
[349890379,1737479464901,-439.12586914,0.00020934,2]
[349890380,1737479464913,-150.0,0.00020994,2]
[349890381,1737479464925,-505.709005,0.00021,2]
[349890382,1737479464934,-439.12586914,0.00021003,2]
[349890383,1737479464943,-439.12586914,0.00021072,2]
[349890384,1737479464952,-88493.99745823,0.0002108,2]
[349890385,1737479464972,-26494.0,0.0002108,2]
[349890386,1737479464985,-613.37774362,0.0002108,2]
[349890387,1737479465031,-500.0,0.00020431,2]
[349890388,1737479465041,-17166.0,0.0002108,2]
[349890389,1737479465434,-500.0,0.00019178,2]
[349890390,1737479465443,-312.57581002,0.00019178,2]
[349890391,1737479465456,-187.42418998,0.00019178,2]
[349890392,1737479465466,-339.17581002,0.00019178,2]
[349890393,1737479465488,-160.82418998,0.00019178,2]
[349890394,1737479465499,-500.0,0.00019452,2]
[349890395,1737479465509,-500.0,0.00019452,2]
[349890396,1737479465519,-500.0,0.00019452,2]
[349890397,1737479465529,-500.0,0.00019726,2]
[349890398,1737479465539,-500.0,0.00019726,2]
[349890399,1737479465548,-500.0,0.00019726,2]
[349890400,1737479465559,-500.0,0.0002,2]
[349890401,1737479465571,-500.0,0.0002,2]
[349890402,1737479465581,-190.14,0.0002,2]
[349890403,1737479465591,-418.30262464,0.0002004,2]
[349890404,1737479615599,153.95,0.000191,30]
[349890405,1737479615811,153.95,0.00021684,30]
[349890413,1737479943625,151.31,0.00010137,2]
[349890418,1737480308321,36848.69,0.00012,2]
[349890419,1737480308348,62003.12083673,0.00012,2]
[349890427,1737480467416,185.56,0.00012329,2]
[349890432,1737480486709,153.95,0.0001819,30]
[349890433,1737480487124,153.95,0.00021078,30]
[349890458,1737480632295,-1153.42657498,0.00015951,2]
[349890459,1737480632515,-796.57342502,0.00015951,2]
[349890460,1737480632525,-457.12,0.00016728,2]
[349890461,1737480632535,-744.03823345,0.00017928,2]
[349890462,1737480632545,-3430.31835952,0.00018,10]
[349890463,1737480632556,-1846.87851,0.00018,10]
[349890464,1737480632568,-2502.5,0.00018,10]
[349890465,1737480632588,-8754.23141265,0.00018,10]
[349890466,1737480632598,-300.0,0.00018027,2]
[349890467,1737480632608,-1000.0,0.00018028,2]
[349890468,1737480632618,-49644.82039511,0.00018028,2]
[349890469,1737480632628,-14710.99,0.00018088,2]